[Event "December 5 Late 2023"]
[Site "https://www.chess.com"]
[Date "2023.12.05"]
[Round "2"]
[White "Ehlvest, Jaan"]
[Black "Aronian, Levon"]
[Result "0-1"]
[Board "5"]
[TimeControl "180+1"]
[WhiteFideId "4500016"]
[BlackFideId "13300474"]
[WhiteElo "2638"]
[BlackElo "3116"]
[WhiteTeam "USA"]
[BlackTeam "USA"]
[WhiteClock "0:00:00"]
[BlackClock "0:00:26"]

1. e4 {[%clk 0:02:51]}  c5 {[%clk 0:02:59]} 2. Nf3 {[%clk 0:02:48]}  e6 {[%clk 0:02:58]} 3. d4 {[%clk 0:02:44]}  cxd4 {[%clk 0:02:57]} 4. Nxd4 {[%clk 0:02:44]}  Nc6 {[%clk 0:02:57]} 5. Nc3 {[%clk 0:02:41]}  Qc7 {[%clk 0:02:57]} 6. Ncb5 {[%clk 0:02:35]}  Qb8 {[%clk 0:02:56]} 7. Bd3 {[%clk 0:02:33]}  Nf6 {[%clk 0:02:53]} 8. O-O {[%clk 0:02:29]}  Be7 {[%clk 0:02:53]} 9. c4 {[%clk 0:02:17]}  a6 {[%clk 0:02:42]} 10. Nxc6 {[%clk 0:02:14]}  dxc6 {[%clk 0:02:43]} 11. Nc3 {[%clk 0:02:08]}  e5 {[%clk 0:02:42]} 12. Be3 {[%clk 0:01:56]}  b5 {[%clk 0:02:36]} 13. h3 {[%clk 0:01:47]}  O-O {[%clk 0:02:35]} 14. Qe2 {[%clk 0:01:35]}  Rd8 {[%clk 0:02:34]} 15. Rac1 {[%clk 0:01:32]}  Be6 {[%clk 0:02:33]} 16. b3 {[%clk 0:01:20]}  Nd7 {[%clk 0:02:19]} 17. Qc2 {[%clk 0:01:12]}  Nc5 {[%clk 0:02:08]} 18. Be2 {[%clk 0:01:08]}  b4 {[%clk 0:02:07]} 19. Nd5 {[%clk 0:00:46]}  Bf8 {[%clk 0:01:59]} 20. f4 {[%clk 0:00:38]}  Nxe4 {[%clk 0:01:04]} 21. Nb6 {[%clk 0:00:23]}  Ng3 {[%clk 0:01:03]} 22. f5 {[%clk 0:00:17]}  Bc8 {[%clk 0:00:54]} 23. c5 {[%clk 0:00:14]}  Nxf1 {[%clk 0:00:50]} 24. Rxf1 {[%clk 0:00:13]}  Ra7 {[%clk 0:00:49]} 25. Qe4 {[%clk 0:00:12]}  a5 {[%clk 0:00:35]} 26. Bc4 {[%clk 0:00:12]}  Ba6 {[%clk 0:00:34]} 27. Bxa6 {[%clk 0:00:09]}  Rxa6 {[%clk 0:00:34]} 28. Qxc6 {[%clk 0:00:09]}  Ra7 {[%clk 0:00:34]} 29. Qe4 {[%clk 0:00:08]}  Rc7 {[%clk 0:00:30]} 30. c6 {[%clk 0:00:08]}  Rd6 {[%clk 0:00:26]} 31. Rc1 {[%clk 0:00:00]}  Qe8 {[%clk 0:00:26]} 0-1

[Event "December 5 Late 2023"]
[Site "https://www.chess.com"]
[Date "2023.12.05"]
[Round "2"]
[White "Erigaisi Arjun"]
[Black "Miranda, Rafael"]
[Result "1-0"]
[Board "8"]
[TimeControl "180+1"]
[WhiteFideId "35009192"]
[BlackFideId "130990"]
[WhiteElo "3101"]
[BlackElo "2630"]
[WhiteTeam "IND"]
[BlackTeam "ARG"]
[WhiteClock "0:02:17"]
[BlackClock "0:00:54"]

1. b3 {[%clk 0:03:00]}  d5 {[%clk 0:02:59]} 2. Bb2 {[%clk 0:03:01]}  Nf6 {[%clk 0:02:59]} 3. e3 {[%clk 0:03:01]}  e6 {[%clk 0:02:59]} 4. f4 {[%clk 0:03:01]}  Bd6 {[%clk 0:03:00]} 5. Nf3 {[%clk 0:03:01]}  c5 {[%clk 0:03:00]} 6. Bb5+ {[%clk 0:02:59]}  Nc6 {[%clk 0:03:00]} 7. O-O {[%clk 0:02:57]}  O-O {[%clk 0:02:59]} 8. Bxc6 {[%clk 0:02:57]}  bxc6 {[%clk 0:02:59]} 9. Ne5 {[%clk 0:02:58]}  Bb7 {[%clk 0:02:58]} 10. d3 {[%clk 0:02:58]}  a5 {[%clk 0:02:57]} 11. a4 {[%clk 0:02:57]}  Ne8 {[%clk 0:02:55]} 12. Qg4 {[%clk 0:02:56]}  Qe7 {[%clk 0:02:44]} 13. Nd2 {[%clk 0:02:49]}  f6 {[%clk 0:02:42]} 14. Nef3 {[%clk 0:02:49]}  Bc8 {[%clk 0:02:39]} 15. Qg3 {[%clk 0:02:47]}  Rb8 {[%clk 0:02:36]} 16. e4 {[%clk 0:02:45]}  f5 {[%clk 0:02:16]} 17. Ne5 {[%clk 0:02:40]}  Bb7 {[%clk 0:02:08]} 18. Rae1 {[%clk 0:02:37]}  Qd8 {[%clk 0:01:57]} 19. exf5 {[%clk 0:02:35]}  Rxf5 {[%clk 0:01:52]} 20. Ng4 {[%clk 0:02:35]}  Kh8 {[%clk 0:01:19]} 21. Rxe6 {[%clk 0:02:31]}  Bc8 {[%clk 0:01:19]} 22. Re2 {[%clk 0:02:21]}  Rf7 {[%clk 0:01:19]} 23. Rfe1 {[%clk 0:02:19]}  Bd7 {[%clk 0:00:54]} 24. Nh6 {[%clk 0:02:17]} 1-0

[Event "December 5 Late 2023"]
[Site "https://www.chess.com"]
[Date "2023.12.05"]
[Round "2"]
[White "Maltsevskaya, Aleksandra"]
[Black "Bortnyk, Mykola"]
[Result "0-1"]
[Board "14"]
[TimeControl "180+1"]
[WhiteFideId "24174041"]
[BlackFideId "14120836"]
[WhiteElo "2617"]
[BlackElo "3032"]
[WhiteTeam "POL"]
[BlackTeam "UKR"]
[WhiteClock "0:00:00"]
[BlackClock "0:00:27"]

1. e4 {[%clk 0:03:00]}  Nf6 {[%clk 0:02:58]} 2. e5 {[%clk 0:03:00]}  Nd5 {[%clk 0:02:59]} 3. c4 {[%clk 0:02:59]}  Nb6 {[%clk 0:02:59]} 4. d4 {[%clk 0:03:00]}  d6 {[%clk 0:02:59]} 5. f4 {[%clk 0:03:01]}  dxe5 {[%clk 0:02:59]} 6. fxe5 {[%clk 0:03:01]}  Nc6 {[%clk 0:03:00]} 7. Be3 {[%clk 0:03:01]}  Bf5 {[%clk 0:03:01]} 8. Nc3 {[%clk 0:03:01]}  e6 {[%clk 0:03:01]} 9. Rc1 {[%clk 0:03:01]}  Qd7 {[%clk 0:02:53]} 10. Nf3 {[%clk 0:02:59]}  O-O-O {[%clk 0:02:53]} 11. Qb3 {[%clk 0:02:51]}  f6 {[%clk 0:02:27]} 12. c5 {[%clk 0:02:01]}  Nd5 {[%clk 0:02:26]} 13. Nxd5 {[%clk 0:02:01]}  exd5 {[%clk 0:02:12]} 14. Bb5 {[%clk 0:02:01]}  a6 {[%clk 0:02:02]} 15. Ba4 {[%clk 0:01:43]}  Be4 {[%clk 0:02:02]} 16. O-O {[%clk 0:01:42]}  Be7 {[%clk 0:01:58]} 17. Qd1 {[%clk 0:01:18]}  Qe6 {[%clk 0:01:52]} 18. b4 {[%clk 0:01:02]}  Bxf3 {[%clk 0:01:42]} 19. Qxf3 {[%clk 0:00:49]}  fxe5 {[%clk 0:01:39]} 20. Bxc6 {[%clk 0:00:35]}  bxc6 {[%clk 0:01:39]} 21. Rfe1 {[%clk 0:00:20]}  e4 {[%clk 0:01:25]} 22. Qe2 {[%clk 0:00:19]}  Kb7 {[%clk 0:01:26]} 23. a4 {[%clk 0:00:19]}  Ra8 {[%clk 0:01:24]} 24. b5 {[%clk 0:00:19]}  axb5 {[%clk 0:01:18]} 25. axb5 {[%clk 0:00:20]}  h5 {[%clk 0:01:17]} 26. Rb1 {[%clk 0:00:20]}  Kc8 {[%clk 0:01:17]} 27. b6 {[%clk 0:00:19]}  Kd7 {[%clk 0:01:14]} 28. bxc7 {[%clk 0:00:19]}  Rac8 {[%clk 0:01:12]} 29. Rb6 {[%clk 0:00:16]}  Rxc7 {[%clk 0:01:09]} 30. Bf4 {[%clk 0:00:16]}  Ra7 {[%clk 0:01:09]} 31. Reb1 {[%clk 0:00:14]}  Qg4 {[%clk 0:01:04]} 32. Rb7+ {[%clk 0:00:13]}  Rxb7 {[%clk 0:01:03]} 33. Rxb7+ {[%clk 0:00:13]}  Ke6 {[%clk 0:01:04]} 34. Qxg4+ {[%clk 0:00:09]}  hxg4 {[%clk 0:01:05]} 35. Rc7 {[%clk 0:00:07]}  Ra8 {[%clk 0:00:57]} 36. Rxc6+ {[%clk 0:00:08]}  Kf5 {[%clk 0:00:57]} 37. g3 {[%clk 0:00:07]}  Ra1+ {[%clk 0:00:51]} 38. Kg2 {[%clk 0:00:08]}  Ra2+ {[%clk 0:00:52]} 39. Kg1 {[%clk 0:00:09]}  Re2 {[%clk 0:00:50]} 40. Rc7 {[%clk 0:00:08]}  Bf6 {[%clk 0:00:51]} 41. Rd7 {[%clk 0:00:08]}  Bxd4+ {[%clk 0:00:51]} 42. Kf1 {[%clk 0:00:08]}  Rf2+ {[%clk 0:00:36]} 43. Ke1 {[%clk 0:00:09]}  e3 {[%clk 0:00:26]} 44. c6 {[%clk 0:00:09]}  Ke4 {[%clk 0:00:27]} 45. c7 {[%clk 0:00:06]}  Bc3+ {[%clk 0:00:26]} 46. Kd1 {[%clk 0:00:00]}  e2+ {[%clk 0:00:27]} 0-1

[Event "December 5 Late 2023"]
[Site "https://www.chess.com"]
[Date "2023.12.05"]
[Round "2"]
[White "Bluebaum, Matthias"]
[Black "Mendes Aaron Reeve"]
[Result "1-0"]
[Board "15"]
[TimeControl "180+1"]
[WhiteFideId "24651516"]
[BlackFideId "25954938"]
[WhiteElo "3027"]
[BlackElo "2617"]
[WhiteTeam "GER"]
[BlackTeam "CAN"]
[WhiteClock "0:02:07"]
[BlackClock "0:01:43"]

1. d4 {[%clk 0:03:00]}  Nf6 {[%clk 0:02:57]} 2. c4 {[%clk 0:03:01]}  d6 {[%clk 0:02:56]} 3. Nf3 {[%clk 0:03:00]}  Nbd7 {[%clk 0:02:56]} 4. Nc3 {[%clk 0:03:01]}  g6 {[%clk 0:02:56]} 5. e4 {[%clk 0:03:01]}  Bg7 {[%clk 0:02:56]} 6. Be2 {[%clk 0:03:01]}  O-O {[%clk 0:02:56]} 7. O-O {[%clk 0:03:02]}  e5 {[%clk 0:02:56]} 8. Be3 {[%clk 0:03:03]}  Re8 {[%clk 0:02:56]} 9. Qc2 {[%clk 0:03:03]}  b6 {[%clk 0:02:53]} 10. Rad1 {[%clk 0:03:03]}  Bb7 {[%clk 0:02:53]} 11. dxe5 {[%clk 0:03:01]}  Nxe5 {[%clk 0:02:53]} 12. Nxe5 {[%clk 0:03:01]}  Rxe5 {[%clk 0:02:54]} 13. f3 {[%clk 0:03:02]}  Qe8 {[%clk 0:02:53]} 14. Bd4 {[%clk 0:03:01]}  Re7 {[%clk 0:02:52]} 15. b3 {[%clk 0:02:57]}  Rd8 {[%clk 0:02:49]} 16. Qb2 {[%clk 0:02:56]}  Nh5 {[%clk 0:02:44]} 17. Bxg7 {[%clk 0:02:54]}  Nxg7 {[%clk 0:02:45]} 18. Bd3 {[%clk 0:02:52]}  a6 {[%clk 0:02:44]} 19. f4 {[%clk 0:02:51]}  Ne6 {[%clk 0:02:43]} 20. b4 {[%clk 0:02:41]}  c5 {[%clk 0:02:31]} 21. bxc5 {[%clk 0:02:30]}  Nxc5 {[%clk 0:02:31]} 22. Qxb6 {[%clk 0:02:28]}  Bxe4 {[%clk 0:02:12]} 23. Bxe4 {[%clk 0:02:22]}  Nxe4 {[%clk 0:02:12]} 24. Nd5 {[%clk 0:02:17]}  Red7 {[%clk 0:02:10]} 25. Rfe1 {[%clk 0:02:14]}  f5 {[%clk 0:02:01]} 26. Rxe4 {[%clk 0:02:12]}  fxe4 {[%clk 0:01:53]} 27. Nf6+ {[%clk 0:02:11]}  Kg7 {[%clk 0:01:54]} 28. Nxe8+ {[%clk 0:02:12]}  Rxe8 {[%clk 0:01:54]} 29. Rxd6 {[%clk 0:02:09]}  Rxd6 {[%clk 0:01:51]} 30. Qxd6 {[%clk 0:02:10]}  e3 {[%clk 0:01:51]} 31. Kf1 {[%clk 0:02:10]}  e2+ {[%clk 0:01:51]} 32. Ke1 {[%clk 0:02:11]}  Re4 {[%clk 0:01:52]} 33. Qd5 {[%clk 0:02:08]}  Re7 {[%clk 0:01:45]} 34. c5 {[%clk 0:02:08]}  a5 {[%clk 0:01:45]} 35. c6 {[%clk 0:02:08]}  Kf8 {[%clk 0:01:43]} 36. c7 {[%clk 0:02:07]} 1-0

[Event "December 5 Late 2023"]
[Site "https://www.chess.com"]
[Date "2023.12.05"]
[Round "2"]
[White "Mis, Mieszko"]
[Black "Hakobyan, Aram"]
[Result "1/2-1/2"]
[Board "16"]
[TimeControl "180+1"]
[WhiteFideId "1196448"]
[BlackFideId "13306677"]
[WhiteElo "2614"]
[BlackElo "3019"]
[WhiteTeam "POL"]
[BlackTeam "ARM"]
[WhiteClock "0:00:18"]
[BlackClock "0:00:12"]

1. Nf3 {[%clk 0:03:00]}  Nf6 {[%clk 0:02:59]} 2. c4 {[%clk 0:03:00]}  b6 {[%clk 0:02:58]} 3. g3 {[%clk 0:03:00]}  Bb7 {[%clk 0:02:59]} 4. Bg2 {[%clk 0:03:01]}  g6 {[%clk 0:03:00]} 5. O-O {[%clk 0:03:02]}  Bg7 {[%clk 0:03:00]} 6. Nc3 {[%clk 0:02:58]}  O-O {[%clk 0:03:00]} 7. Re1 {[%clk 0:02:58]}  Ne4 {[%clk 0:02:59]} 8. Nxe4 {[%clk 0:02:57]}  Bxe4 {[%clk 0:02:59]} 9. d3 {[%clk 0:02:57]}  Bb7 {[%clk 0:02:59]} 10. e4 {[%clk 0:02:58]}  e5 {[%clk 0:02:59]} 11. Bg5 {[%clk 0:02:56]}  Qe8 {[%clk 0:02:48]} 12. d4 {[%clk 0:02:49]}  d6 {[%clk 0:02:43]} 13. dxe5 {[%clk 0:02:40]}  dxe5 {[%clk 0:02:42]} 14. Qc2 {[%clk 0:02:40]}  Nc6 {[%clk 0:02:33]} 15. Rad1 {[%clk 0:02:39]}  Nd4 {[%clk 0:02:29]} 16. Nxd4 {[%clk 0:02:36]}  exd4 {[%clk 0:02:30]} 17. e5 {[%clk 0:02:31]}  Bxg2 {[%clk 0:02:31]} 18. Kxg2 {[%clk 0:02:31]}  c5 {[%clk 0:02:30]} 19. Qe4 {[%clk 0:02:30]}  Qe6 {[%clk 0:02:13]} 20. b3 {[%clk 0:02:29]}  h6 {[%clk 0:02:13]} 21. Bf4 {[%clk 0:02:28]}  Rad8 {[%clk 0:02:11]} 22. h4 {[%clk 0:02:28]}  Rfe8 {[%clk 0:02:09]} 23. Qf3 {[%clk 0:02:19]}  Qf5 {[%clk 0:01:51]} 24. Qe4 {[%clk 0:02:18]}  Qg4 {[%clk 0:01:23]} 25. Qf3 {[%clk 0:02:14]}  Qf5 {[%clk 0:01:22]} 26. Qe4 {[%clk 0:02:14]}  Qxe4+ {[%clk 0:01:13]} 27. Rxe4 {[%clk 0:02:14]}  f6 {[%clk 0:01:08]} 28. e6 {[%clk 0:01:50]}  f5 {[%clk 0:01:09]} 29. Re2 {[%clk 0:01:50]}  Re7 {[%clk 0:01:09]} 30. Kf3 {[%clk 0:01:09]}  Kh7 {[%clk 0:01:04]} 31. g4 {[%clk 0:00:54]}  fxg4+ {[%clk 0:01:03]} 32. Kxg4 {[%clk 0:00:55]}  Bf6 {[%clk 0:00:47]} 33. Bg3 {[%clk 0:00:53]}  h5+ {[%clk 0:00:36]} 34. Kh3 {[%clk 0:00:52]}  Kg7 {[%clk 0:00:32]} 35. f4 {[%clk 0:00:50]}  Rde8 {[%clk 0:00:30]} 36. Rde1 {[%clk 0:00:47]}  d3 {[%clk 0:00:31]} 37. Re3 {[%clk 0:00:47]}  Rxe6 {[%clk 0:00:14]} 38. Rxe6 {[%clk 0:00:34]}  Rxe6 {[%clk 0:00:15]} 39. Rxe6 {[%clk 0:00:34]}  d2 {[%clk 0:00:15]} 40. Re1 {[%clk 0:00:32]}  dxe1=Q {[%clk 0:00:16]} 41. Bxe1 {[%clk 0:00:33]}  Kf7 {[%clk 0:00:16]} 42. Kg3 {[%clk 0:00:29]}  Ke6 {[%clk 0:00:17]} 43. Kf3 {[%clk 0:00:30]}  Kf5 {[%clk 0:00:17]} 44. Bf2 {[%clk 0:00:31]}  Be7 {[%clk 0:00:16]} 45. Be1 {[%clk 0:00:31]}  Bd6 {[%clk 0:00:15]} 46. Bd2 {[%clk 0:00:32]}  Bc7 {[%clk 0:00:16]} 47. Be3 {[%clk 0:00:30]}  Bd8 {[%clk 0:00:17]} 48. Bf2 {[%clk 0:00:30]}  Bf6 {[%clk 0:00:17]} 49. Be1 {[%clk 0:00:30]}  Bd4 {[%clk 0:00:18]} 50. Bd2 {[%clk 0:00:29]}  a6 {[%clk 0:00:12]} 51. Be1 {[%clk 0:00:26]}  b5 {[%clk 0:00:10]} 52. a4 {[%clk 0:00:26]}  bxa4 {[%clk 0:00:04]} 53. bxa4 {[%clk 0:00:27]}  Bf6 {[%clk 0:00:04]} 54. Bf2 {[%clk 0:00:27]}  Be7 {[%clk 0:00:05]} 55. Be1 {[%clk 0:00:27]}  Bd6 {[%clk 0:00:05]} 56. Bf2 {[%clk 0:00:23]}  Bf8 {[%clk 0:00:03]} 57. Be1 {[%clk 0:00:23]}  Be7 {[%clk 0:00:02]} 58. Bf2 {[%clk 0:00:22]}  Bd6 {[%clk 0:00:03]} 59. Be3 {[%clk 0:00:22]}  Bf8 {[%clk 0:00:03]} 60. Bf2 {[%clk 0:00:21]}  Be7 {[%clk 0:00:03]} 61. Be3 {[%clk 0:00:21]}  Bxh4 {[%clk 0:00:03]} 62. Bxc5 {[%clk 0:00:22]}  Bd8 {[%clk 0:00:03]} 63. Bf2 {[%clk 0:00:20]}  Bc7 {[%clk 0:00:03]} 64. Bg3 {[%clk 0:00:18]}  g5 {[%clk 0:00:03]} 65. fxg5 {[%clk 0:00:15]}  Bxg3 {[%clk 0:00:04]} 66. Kxg3 {[%clk 0:00:16]}  Kxg5 {[%clk 0:00:04]} 67. Kh3 {[%clk 0:00:13]}  a5 {[%clk 0:00:03]} 68. Kg3 {[%clk 0:00:13]}  Kf5 {[%clk 0:00:03]} 69. Kh4 {[%clk 0:00:14]}  Ke5 {[%clk 0:00:04]} 70. Kxh5 {[%clk 0:00:14]}  Kd4 {[%clk 0:00:05]} 71. Kg4 {[%clk 0:00:15]}  Kxc4 {[%clk 0:00:05]} 72. Kf4 {[%clk 0:00:15]}  Kb3 {[%clk 0:00:06]} 73. Ke3 {[%clk 0:00:15]}  Kxa4 {[%clk 0:00:07]} 74. Kd2 {[%clk 0:00:16]}  Kb3 {[%clk 0:00:08]} 75. Kc1 {[%clk 0:00:16]}  Ka2 {[%clk 0:00:08]} 76. Kc2 {[%clk 0:00:16]}  a4 {[%clk 0:00:09]} 77. Kc1 {[%clk 0:00:17]}  Ka1 {[%clk 0:00:10]} 78. Kc2 {[%clk 0:00:17]}  a3 {[%clk 0:00:11]} 79. Kc1 {[%clk 0:00:18]}  a2 {[%clk 0:00:12]} 80. Kc2 {[%clk 0:00:18]} 1/2-1/2

[Event "December 5 Late 2023"]
[Site "https://www.chess.com"]
[Date "2023.12.05"]
[Round "2"]
[White "Sarana, Alexey"]
[Black "Poltorak, Sebastian"]
[Result "1-0"]
[Board "17"]
[TimeControl "180+1"]
[WhiteFideId "24133795"]
[BlackFideId "1199498"]
[WhiteElo "3003"]
[BlackElo "2610"]
[WhiteTeam "SRB"]
[BlackTeam "POL"]
[WhiteClock "0:02:14"]
[BlackClock "0:00:20"]

1. d4 {[%clk 0:03:00]}  Nf6 {[%clk 0:02:59]} 2. c4 {[%clk 0:03:01]}  g6 {[%clk 0:03:00]} 3. Nc3 {[%clk 0:03:01]}  d5 {[%clk 0:03:00]} 4. Bg5 {[%clk 0:03:00]}  Ne4 {[%clk 0:03:00]} 5. Bh4 {[%clk 0:02:59]}  g5 {[%clk 0:03:01]} 6. Nxe4 {[%clk 0:02:55]}  dxe4 {[%clk 0:02:59]} 7. Bxg5 {[%clk 0:02:54]}  Bg7 {[%clk 0:02:57]} 8. e3 {[%clk 0:02:51]}  c5 {[%clk 0:02:57]} 9. Ne2 {[%clk 0:02:46]}  Nc6 {[%clk 0:01:49]} 10. Qd2 {[%clk 0:02:41]}  cxd4 {[%clk 0:01:41]} 11. exd4 {[%clk 0:02:40]}  Nxd4 {[%clk 0:01:34]} 12. O-O-O {[%clk 0:02:30]}  Nxe2+ {[%clk 0:01:23]} 13. Bxe2 {[%clk 0:02:31]}  Qxd2+ {[%clk 0:01:22]} 14. Rxd2 {[%clk 0:02:32]}  Be6 {[%clk 0:01:15]} 15. Kb1 {[%clk 0:02:31]}  f6 {[%clk 0:01:11]} 16. Be3 {[%clk 0:02:29]}  O-O {[%clk 0:01:08]} 17. c5 {[%clk 0:02:26]}  f5 {[%clk 0:01:08]} 18. g3 {[%clk 0:02:26]}  Rfd8 {[%clk 0:00:59]} 19. Rhd1 {[%clk 0:02:25]}  Rxd2 {[%clk 0:00:59]} 20. Rxd2 {[%clk 0:02:26]}  Be5 {[%clk 0:00:52]} 21. Kc2 {[%clk 0:02:16]}  Bxa2 {[%clk 0:00:30]} 22. b3 {[%clk 0:02:16]}  a5 {[%clk 0:00:30]} 23. Bc4+ {[%clk 0:02:16]}  Kg7 {[%clk 0:00:28]} 24. Kc1 {[%clk 0:02:16]}  Bxb3 {[%clk 0:00:22]} 25. Bxb3 {[%clk 0:02:16]}  a4 {[%clk 0:00:23]} 26. Ba2 {[%clk 0:02:16]}  a3 {[%clk 0:00:24]} 27. Rd5 {[%clk 0:02:16]}  Bb2+ {[%clk 0:00:24]} 28. Kc2 {[%clk 0:02:16]}  e6 {[%clk 0:00:24]} 29. Rd7+ {[%clk 0:02:16]}  Kg6 {[%clk 0:00:24]} 30. Rxb7 {[%clk 0:02:16]}  e5 {[%clk 0:00:22]} 31. c6 {[%clk 0:02:15]}  Rc8 {[%clk 0:00:20]} 32. c7 {[%clk 0:02:15]}  Kf6 {[%clk 0:00:21]} 33. Bb6 {[%clk 0:02:13]}  Ke7 {[%clk 0:00:20]} 34. Rb8 {[%clk 0:02:14]} 1-0

[Event "December 5 Late 2023"]
[Site "https://www.chess.com"]
[Date "2023.12.05"]
[Round "2"]
[White "Skatchkov, Valery"]
[Black "Tari, Aryan"]
[Result "0-1"]
[Board "18"]
[TimeControl "180+1"]
[WhiteFideId "24195812"]
[BlackFideId "1510045"]
[WhiteElo "2606"]
[BlackElo "3001"]
[WhiteTeam "RUS"]
[BlackTeam "NOR"]
[WhiteClock "0:00:00"]
[BlackClock "0:00:37"]

1. d4 {[%clk 0:03:00]}  d5 {[%clk 0:02:55]} 2. c4 {[%clk 0:03:01]}  e6 {[%clk 0:02:55]} 3. Nf3 {[%clk 0:03:01]}  a6 {[%clk 0:02:55]} 4. g3 {[%clk 0:02:59]}  dxc4 {[%clk 0:02:54]} 5. Bg2 {[%clk 0:03:00]}  b5 {[%clk 0:02:55]} 6. Ne5 {[%clk 0:02:59]}  c6 {[%clk 0:02:55]} 7. Nc3 {[%clk 0:02:57]}  Bb7 {[%clk 0:02:54]} 8. O-O {[%clk 0:02:57]}  Nf6 {[%clk 0:02:48]} 9. b3 {[%clk 0:02:57]}  cxb3 {[%clk 0:02:45]} 10. Qxb3 {[%clk 0:02:57]}  Be7 {[%clk 0:02:39]} 11. Rd1 {[%clk 0:02:45]}  O-O {[%clk 0:02:39]} 12. a4 {[%clk 0:02:21]}  b4 {[%clk 0:02:23]} 13. a5 {[%clk 0:02:21]}  Nbd7 {[%clk 0:02:15]} 14. Bxc6 {[%clk 0:02:05]}  Qc8 {[%clk 0:02:01]} 15. Bxb7 {[%clk 0:01:58]}  Qxb7 {[%clk 0:02:02]} 16. Bg5 {[%clk 0:01:54]}  Rab8 {[%clk 0:01:14]} 17. Nxd7 {[%clk 0:01:10]}  Qxd7 {[%clk 0:01:15]} 18. Na4 {[%clk 0:01:10]}  Nd5 {[%clk 0:01:08]} 19. Bxe7 {[%clk 0:01:06]}  Qxe7 {[%clk 0:01:09]} 20. e4 {[%clk 0:01:05]}  Nf6 {[%clk 0:01:08]} 21. f3 {[%clk 0:00:59]}  Nd7 {[%clk 0:01:06]} 22. Rac1 {[%clk 0:00:41]}  Rfc8 {[%clk 0:01:05]} 23. Qd3 {[%clk 0:00:30]}  Rxc1 {[%clk 0:00:55]} 24. Rxc1 {[%clk 0:00:30]}  Qd6 {[%clk 0:00:55]} 25. Qc4 {[%clk 0:00:15]}  b3 {[%clk 0:00:46]} 26. Rb1 {[%clk 0:00:05]}  Rb4 {[%clk 0:00:42]} 27. Qc3 {[%clk 0:00:04]}  Rxa4 {[%clk 0:00:37]} 28. Qxb3 {[%clk 0:00:00]}  Qxd4+ {[%clk 0:00:37]} 0-1

[Event "December 5 Late 2023"]
[Site "https://www.chess.com"]
[Date "2023.12.05"]
[Round "2"]
[White "Xiong, Jeffery"]
[Black "Cremisi, Daniel"]
[Result "1-0"]
[Board "19"]
[TimeControl "180+1"]
[WhiteFideId "2047640"]
[BlackFideId "2089882"]
[WhiteElo "3001"]
[BlackElo "2604"]
[WhiteTeam "USA"]
[BlackTeam "USA"]
[WhiteClock "0:01:42"]
[BlackClock "0:01:20"]

1. Nf3 {[%clk 0:03:00]}  Nf6 {[%clk 0:02:58]} 2. c4 {[%clk 0:03:00]}  e6 {[%clk 0:02:59]} 3. b3 {[%clk 0:02:59]}  d5 {[%clk 0:02:59]} 4. Bb2 {[%clk 0:02:59]}  b6 {[%clk 0:02:59]} 5. g3 {[%clk 0:02:55]}  Bb7 {[%clk 0:02:59]} 6. Bg2 {[%clk 0:02:55]}  g6 {[%clk 0:02:59]} 7. cxd5 {[%clk 0:02:54]}  exd5 {[%clk 0:02:59]} 8. O-O {[%clk 0:02:53]}  Bg7 {[%clk 0:02:59]} 9. d4 {[%clk 0:02:49]}  O-O {[%clk 0:02:59]} 10. Nc3 {[%clk 0:02:49]}  Ne4 {[%clk 0:02:52]} 11. e3 {[%clk 0:02:45]}  Nd7 {[%clk 0:02:51]} 12. Qc2 {[%clk 0:02:44]}  Nxc3 {[%clk 0:02:51]} 13. Bxc3 {[%clk 0:02:43]}  Rc8 {[%clk 0:02:51]} 14. Qb2 {[%clk 0:02:36]}  Qe7 {[%clk 0:02:51]} 15. b4 {[%clk 0:02:30]}  Ba6 {[%clk 0:02:11]} 16. b5 {[%clk 0:02:30]}  Bb7 {[%clk 0:02:09]} 17. Bb4 {[%clk 0:02:30]}  Nc5 {[%clk 0:01:59]} 18. Qa3 {[%clk 0:02:27]}  a5 {[%clk 0:01:48]} 19. bxa6 {[%clk 0:02:26]}  Ra8 {[%clk 0:01:48]} 20. dxc5 {[%clk 0:02:00]}  Rxa6 {[%clk 0:01:48]} 21. c6 {[%clk 0:02:00]}  Qe6 {[%clk 0:01:39]} 22. Qc1 {[%clk 0:01:46]}  Bxa1 {[%clk 0:01:35]} 23. Qxa1 {[%clk 0:01:44]}  Bxc6 {[%clk 0:01:29]} 24. Bxf8 {[%clk 0:01:44]}  Kxf8 {[%clk 0:01:29]} 25. Qh8+ {[%clk 0:01:44]}  Ke7 {[%clk 0:01:29]} 26. Nd4 {[%clk 0:01:43]}  Qd7 {[%clk 0:01:29]} 27. Qe5+ {[%clk 0:01:42]}  Kf8 {[%clk 0:01:20]} 28. Rc1 {[%clk 0:01:42]} 1-0

[Event "December 5 Late 2023"]
[Site "https://www.chess.com"]
[Date "2023.12.05"]
[Round "2"]
[White "Henriquez Villagra, Cristobal"]
[Black "Olenik Campa, Rudi"]
[Result "1-0"]
[Board "21"]
[TimeControl "180+1"]
[WhiteFideId "3409350"]
[BlackFideId "14633264"]
[WhiteElo "2996"]
[BlackElo "2602"]
[WhiteTeam "CHI"]
[BlackTeam "SLO"]
[WhiteClock "0:01:22"]
[BlackClock "0:01:15"]

1. g3 {[%clk 0:03:00]}  g6 {[%clk 0:02:59]} 2. Bg2 {[%clk 0:03:00]}  Bg7 {[%clk 0:03:00]} 3. f4 {[%clk 0:03:01]}  f5 {[%clk 0:02:59]} 4. Nf3 {[%clk 0:03:01]}  Nf6 {[%clk 0:02:59]} 5. O-O {[%clk 0:03:02]}  O-O {[%clk 0:02:59]} 6. c4 {[%clk 0:03:03]}  d6 {[%clk 0:02:58]} 7. Nc3 {[%clk 0:03:02]}  Nc6 {[%clk 0:02:53]} 8. d3 {[%clk 0:02:58]}  e5 {[%clk 0:02:53]} 9. e4 {[%clk 0:02:57]}  h6 {[%clk 0:02:48]} 10. Nh4 {[%clk 0:02:52]}  Kh7 {[%clk 0:02:45]} 11. exf5 {[%clk 0:02:51]}  gxf5 {[%clk 0:02:39]} 12. fxe5 {[%clk 0:02:26]}  Ng4 {[%clk 0:02:39]} 13. Nd5 {[%clk 0:01:54]}  Bxe5 {[%clk 0:02:28]} 14. Bf4 {[%clk 0:01:33]}  Be6 {[%clk 0:02:14]} 15. h3 {[%clk 0:01:30]}  Bd4+ {[%clk 0:02:03]} 16. Kh1 {[%clk 0:01:30]}  Nge5 {[%clk 0:01:40]} 17. Qh5 {[%clk 0:01:25]}  Nf7 {[%clk 0:01:19]} 18. Qg6+ {[%clk 0:01:21]}  Kh8 {[%clk 0:01:15]} 19. Qxe6 {[%clk 0:01:22]} 1-0